Cogmind - Beta 17.1 @@@ ROGUE MODE // 2026.09.07 @ 07:36:17 Player: naththebg Result: Self-destructed Performance ------------- Evolutions (1) 500 Regions Visited (3) 600 Robots Destroyed (95) 475 Value Destroyed (2429) 2429 Prototype IDs (3) 60 Alien Tech Used (0) 0 Bonus (11946) 11946 TOTAL SCORE: 16010 Bonus ------- High Alert Combat Kills 579 Follower Combat Kills 459 Prayed to X0-1V1 5000 Major X0-1V1 Interference 6000 Friendly Fire -92 Cogmind --------- Core Integrity 8/200 Matter 343/700 Energy 280/280 System Corruption 8% Temperature Cool (0) Movement Treading (160) Location -9/Materials Parts ------- > --- POWER (1) -------- Cooled Ion Engine > --- PROPULSION (2) --- Light Treads Improved Treads > --- UTILITY (4) ------ Improved Heat Sink Cooling System Large Storage Unit > --- WEAPON (2) ------- Grenade Launcher > --- INVENTORY (15) --- Protomatter-44 Improved Ion Engine Cooled Ion Engine Light Treads Light Treads Light Treads Light Treads Improved Treads Improved Treads High-capacity Matter Pod (200) Heavy Particle Cannon Heavy Particle Cannon Heavy Particle Cannon Heavy Particle Cannon Mini Grenade Launcher Peak State ------------ > --- POWER ------------ Cooled Ion Engine > --- PROPULSION ------- Light Treads Improved Treads > --- UTILITY ---------- Improved Heat Sink Cooling System Large Storage Unit X0-1V1's Piety Tracker > --- WEAPON ----------- Heavy Particle Cannon Heavy Particle Cannon > --- INVENTORY -------- Protomatter Improved Ion Engine Cooled Ion Engine Light Treads Light Treads Light Treads Light Treads Improved Treads High-capacity Matter Pod Heavy Particle Cannon Heavy Particle Cannon Grenade Launcher Grenade Launcher Mini Grenade Launcher [Rating: 33] Favorites ----------- Power Light Ion Engine Engine Light Ion Engine Propulsion Light Treads Treads Light Treads Utility Large Storage Unit Device X0-1V1's Piety Tracker Storage Large Storage Unit Protection Medium Armor Plating Weapon Assault Rifle Energy Gun EM Pulse Gun Energy Cannon Heavy Particle Cannon Ballistic Gun Assault Rifle Ballistic Cannon Light Cannon Launcher Grenade Launcher Build | -11 -10 -10 -9 ------- Run | Yrd Mat Min Mat Slots Evolved 2 | . . . 2 Power . | . . . . Propulsion . | . . . . Utility 2 | . . . 2 Weapon . | . . . . Parts Attached 34 | 6 9 1 18 Power 3 | 1 . . 2 Engine 3 | 1 . . 2 Core . | . . . . Reactor . | . . . . Propulsion 7 | 2 1 . 4 Treads 7 | 2 1 . 4 Leg . | . . . . Wheel . | . . . . Hover . | . . . . Flight . | . . . . Utility 10 | 1 2 . 7 Device 6 | . 1 . 5 Storage 2 | 1 1 . . Processor . | . . . . Hackware . | . . . . Protection 2 | . . . 2 Artifact . | . . . . Weapon 14 | 2 6 1 5 Energy Gun 2 | 1 1 . . Energy Cannon 3 | . . . 3 Ballistic Gun 3 | 1 2 . . Ballistic Cannon 1 | . 1 . . Launcher 5 | . 2 1 2 Special Weapon . | . . . . Impact Weapon . | . . . . Slashing Weapon . | . . . . Piercing Weapon . | . . . . Special Melee Weapon . | . . . . Unidentified Prototypes 3 | . 2 . 1 Parts Lost 8 | . . . 8 Power 1 | . . . 1 Propulsion 1 | . . . 1 Utility 5 | . . . 5 Weapon 1 | . . . 1 Highest Loss Streak 2 | . . . 2 To Critical Strikes . | . . . . Average Backups 12 | 4 12 13 13 Power . | . . . . Propulsion 6 | 2 7 7 6 Utility . | . . . 1 Weapon 4 | . 4 6 5 Tool/Special . | . . . . Unused Backups 20 | . 9 . 11 Power 2 | . 1 . 1 Propulsion 10 | . 4 . 6 Utility 1 | . . . 1 Weapon 7 | . 4 . 3 Tool/Special . | . . . . Average Slot Usage (%) 95 | . 97 100 90 Engine 11 | . 13 14 9 Treads 24 | . 26 28 21 Device 14 | . 10 14 17 Storage 12 | . 13 14 11 Protection 3 | . . . 8 Energy Gun 1 | . 4 . . Energy Cannon 5 | . . . 13 Ballistic Gun 11 | . 18 20 1 Ballistic Cannon 1 | . 4 . . Launcher 5 | . 3 7 6 Peak Build Rating 33 | 6 23 22 33 Average Rating 20 | 5 18 22 22 On Entrance 12 | . 6 22 22 Avg Prop Armor Cover (%) . | . . . . Naked Turns . | . . . . Heaviest Build 51 | 12 32 29 51 Greatest Support 43 | 40 43 43 43 Greatest Overweight (x) 1 | . 1 . 1 Average Overweight (x) . | . . . . Largest Inventory Capacity 15 | 8 15 15 15 Average Capacity 14 | 7 14 15 15 Most Carried 15 | 6 15 15 15 Average Carried 13 | 4 12 14 14 Final Capacity 15 | 8 15 15 15 Final Carried 15 | 6 13 15 15 Class Distribution -------------------- 82% | Mutant 15% | Gunner Dominant Class ---------------- Mutant | -10/Materials Mutant | -10/Mines Mutant | -9/Materials Resources | -11 -10 -10 -9 ----------- Run | Yrd Mat Min Mat Matter Collected 2622 | 218 764 867 773 Remotely . | . . . . Salvage Created 2663 | 152 869 107 1535 Parts 163 | 10 57 13 83 Haulers Intercepted 7 | . 2 . 5 Recyclers Shooed 4 | 1 . . 3 Parts Field Recycled . | . . . . Retrieved Matter . | . . . . Parts Self-Destructed . | . . . . Prevented . | . . . . Parts Restored . | . . . . Kills | -11 -10 -10 -9 ------- Run | Yrd Mat Min Mat Combat Hostiles Destroyed 60 | . 18 8 34 Guns 5 | . 5 . . Cannons 17 | . 8 . 9 AOE 37 | . 5 8 24 Classes Destroyed 13 | 3 6 2 2 Worker 4 | 1 1 . 2 Builder 2 | . 2 . . Tunneler 6 | 2 2 1 1 Hauler 7 | . 2 . 5 Recycler 4 | 1 . . 3 Mechanic 1 | . . 1 . Operator 5 | . 4 . 1 Watcher 6 | . 3 . 3 Swarmer 7 | . . 6 1 Grunt 40 | . 17 2 21 Duelist 2 | . . . 2 Protector 2 | . . . 2 Sentry 9 | . 1 . 8 Best Kill Streak 11 | 4 5 3 11 Combat Bots Only 11 | . 5 3 11 Max Kills in Single Turn 3 | 1 2 3 3 Gunslinging . | . . . . Exploded 3 | . 2 3 3 Melee . | . . . . Uniques/NPCs Destroyed . | . . . . Combat | -11 -10 -10 -9 -------- Run | Yrd Mat Min Mat Hostile Shots Fired 139 | . 19 10 110 Missed 43 | . 6 4 33 Hits 96 | . 13 6 77 Melee 2 | . . . 2 Projectile 94 | . 13 6 75 Critical Strikes 3 | . . 1 2 Damage Taken 1685 | . 258 144 1283 Core 256 | . 64 . 192 Absorbed by Shields . | . . . . Core Remaining (%) 89 | 100 . 79 . Volleys Fired 152 | 8 52 9 83 Largest 3 | 2 3 1 2 Hottest 150 | 60 80 30 150 Shots Fired 300 | 16 129 9 146 Gun 108 | 16 92 . . Cannon 121 | . 27 . 94 Launcher 71 | . 10 9 52 Special . | . . . . Kinetic 112 | 8 104 . . Thermal 94 | . . . 94 Explosive 71 | . 10 9 52 Electromagnetic 23 | 8 15 . . Robot Hit Streak 13 | 13 11 4 10 Robot Miss Streak 5 | 1 4 . 5 Penetration Max . | . . . . Secondary Targets . | . . . . Shots Hit Robots 159 | 13 67 1 78 Core Hits 153 | 4 44 15 90 Critical Kills 1 | . . . 1 Critical Parts Destroyed . | . . . . Critical Strikes 2 | 1 . . 1 Meltdown 1 | . . . 1 Corrupt 1 | 1 . . . Melee Attacks . | . . . . Impact . | . . . . Slashing . | . . . . Piercing . | . . . . Sneak Attacks . | . . . . Combat Hostiles . | . . . . Follow-up Attacks . | . . . . Damage Inflicted 6530 | 295 1364 688 4183 Guns 749 | 161 588 . . Cannons 1872 | . 372 . 1500 Explosions 3861 | 134 404 669 2654 Melee . | . . . . Ramming 48 | . . 19 29 Kinetic 913 | 83 830 . . Thermal 1634 | 134 . . 1500 Explosive 3727 | . 404 669 2654 Electromagnetic 208 | 78 130 . . Impact . | . . . . Slashing . | . . . . Piercing . | . . . . Highest Corruption 8 | . 2 8 8 Average Corruption 2 | . 1 8 8 Corruption Purged . | . . . . Corruption Blocked . | . . . . Effects 1 | . 1 . . Heat Flow Errors 1 | . 1 . . Overload Shots . | . . . . Overflow Damage 60 | 7 4 . 49 Projectiles 24 | . 4 . 20 Explosions 36 | 7 . . 29 Melee . | . . . . Knockbacks 2 | . 2 . . Impact . | . . . . Kinetic 2 | . 2 . . Secondary . | . . . . Self-Inflicted Damage 308 | . 66 32 210 Shots 11 | . 3 1 7 Rammed 9 | . . 5 4 Targets Rammed 10 | . . 6 4 Kicked . | . . . . Crushed 1 | . . 1 . Highest Temperature 257 | . 115 4 257 Average Temperature 44 | . 20 4 71 Received Heat Transfer 651 | . 87 69 495 Siege Activations . | . . . . Martial Activations . | . . . . Shielding Activations . | . . . . Robots Disrupted . | . . . . Combat Hostiles . | . . . . Robots Corrupted . | . . . . Combat Hostiles . | . . . . Parts Fried . | . . . . Impact Corruptions . | . . . . Robots Melted 1 | . . . 1 Combat Hostiles 1 | . . . 1 Parts Melted 10 | . 2 . 8 Heat Transferred 2361 | 150 . . 2211 Parts Sabotaged . | . . . . Parts Stolen . | . . . . Parts Stripped . | . . . . Power Chain Reactions 2 | 2 . . . Alert | -11 -10 -10 -9 ------- Run | Yrd Mat Min Mat Maximum Alert Level 4 | . 2 1 4 Low Security (%) 35 | 100 59 45 5 Level 1 26 | . 11 54 28 Level 2 19 | . 28 . 23 Level 3 11 | . . . 28 Level 4 6 | . . . 14 Level 5 . | . . . . High Security . | . . . . Max Security . | . . . . Sterilizations 1 | . . . 1 Peak Influence 1251 | 15 550 316 1251 Initial 206 | . . 206 111 Average 386 | 2 209 207 650 Influence Increases 3240 | 20 902 456 1862 Destroy 0b10 Robot/C 1620 | . 360 260 1000 Destroy 0b10 Robot/NC 190 | 20 70 10 90 Destroy Leader 378 | . 110 40 228 Allied During Kill 296 | . . 88 208 Successful Hack 51 | . 32 . 19 Select Force Hacks 90 | . 60 . 30 Disable Machine 75 | . 30 . 45 Destroy Structure 340 | . 70 58 212 Lose Combat Pursuer 30 | . . . 30 Miscellaneous 170 | . 170 . . Influence Decreases 2009 | 20 372 700 917 Entered New Map 499 | . . 324 175 Time Decay 1310 | 20 372 356 562 Lost Part 80 | . . . 80 Lost Ally 120 | . . 20 100 Squads Dispatched 19 | . 8 2 9 Investigation 5 | . 4 . 1 Extermination . | . . . . Reinforcement 7 | . 4 . 3 Assault 7 | . . 2 5 Garrison . | . . . . Intercept . | . . . . Searches Triggered . | . . . . Construction Impeded . | . . . . Haulers Reinforced . | . . . . Active Scanning Responses . | . . . . Cargo Convoy Interrupts . | . . . . Stealth | -11 -10 -10 -9 --------- Run | Yrd Mat Min Mat Distress Signals 2 | . . . 2 Communications Jammed . | . . . . Distress Signals . | . . . . Times Spotted 99 | . 26 11 62 Peak Tracking Total 7 | . 4 4 7 Tactical Retreats 2 | . . . 2 Traps | -11 -10 -10 -9 ------- Run | Yrd Mat Min Mat Traps Triggered 3 | . 3 . . Indirectly . | . . . . Trap Hack Attempts . | . . . . Triggered . | . . . . Disarmed . | . . . . Reprogrammed . | . . . . Reused . | . . . . Traps Extracted . | . . . . Installed . | . . . . Triggered . | . . . . Machines | -11 -10 -10 -9 ---------- Run | Yrd Mat Min Mat Machines Disabled 6 | . 3 . 3 Max in Single Turn 1 | . 1 . 1 Machines Repaired . | . . . . Machines Dismantled . | . . . . Machines Sabotaged . | . . . . Overloaded Fab Kills . | . . . . Hacking | -11 -10 -10 -9 --------- Run | Yrd Mat Min Mat Machines Accessed 15 | . 8 . 7 Terminals 11 | . 6 . 5 Fabricators . | . . . . Repair Stations . | . . . . Recycling Units 3 | . 2 . 1 Scanalyzers 1 | . . . 1 Garrison Access . | . . . . Total Hacks 30 | . 11 . 19 Successful 22 | . 10 . 12 Failed 7 | . 1 . 6 Catastrophic . | . . . . Database Lockouts 1 | . . . 1 Manual 23 | . 11 . 12 Terminals 22 | . 9 . 13 Fabricators . | . . . . Repair Stations . | . . . . Recycling Units 3 | . 2 . 1 Scanalyzers 5 | . . . 5 Garrison Access . | . . . . Terminal Hacks 2 | . 1 . 1 Robot Analysis 1 | . . . 1 Alert Level 1 | . 1 . . Fabricator Hacks . | . . . . Repair Station Hacks . | . . . . Recycling Unit Hacks . | . . . . Scanalyzer 4 | . . . 4 Retrieve Study 4 | . . . 4 Garrison Access Hacks . | . . . . Unauthorized Hacks 16 | . 9 . 7 Terminals 13 | . 7 . 6 Botnet 1 | . . . 1 Operators 1 | . 1 . . Skim 11 | . 6 . 5 Fabricators . | . . . . Repair Stations . | . . . . Recycling Units 3 | . 2 . 1 Tunnel 3 | . 2 . 1 Scanalyzers . | . . . . Garrison Access . | . . . . Data Cores Recovered 1 | . 1 . . Used . | . . . . Hacking Detections 10 | . 4 . 6 Full Trace Events . | . . . . Feedback Events . | . . . . Feedback Blocked . | . . . . Robot Schematics Acquired . | . . . . Robots Built . | . . . . Authchips . | . . . . Time . | . . . . Total Robot Build Rating . | . . . . Part Schematics Acquired . | . . . . Parts Built . | . . . . Authchips . | . . . . Time . | . . . . Total Part Build Rating . | . . . . Part Studies Acquired 4 | . . . 4 Parts Repaired . | . . . . Time . | . . . . Parts Recycled . | . . . . Recycled Matter . | . . . . Retrieved Matter . | . . . . Retrieved Components . | . . . . Parts Scanalyzed . | . . . . Part Schematics Acquired . | . . . . Parts Damaged . | . . . . Bothacking | -11 -10 -10 -9 ------------ Run | Yrd Mat Min Mat Used RIF Installer . | . . . . Robots Hacked . | . . . . Non-combat . | . . . . Combat . | . . . . Robot Hacks Applied . | . . . . Relay Couplers Released . | . . . . Fabnet Peak Effective % . | . . . . Robots Rewired . | . . . . Allies Hacked . | . . . . Hacks Repelled . | . . . . Allies | -11 -10 -10 -9 -------- Run | Yrd Mat Min Mat Total Allies 6 | . . 6 . Largest Group 6 | . . 6 5 Highest-Rated Group 121 | . . 121 113 Highest-Rated Ally 31 | . . 31 31 Total Orders . | . . . . Ally Attacks 108 | . . 29 79 Total Damage 1372 | . . 270 1102 Kills 24 | . . 5 19 Allies Corrupted . | . . . . Allies Melted . | . . . . X0-1V1 Amusement Gains 137 | . 33 . 104 Average Entertainment 15 | . 10 9 22 Good Acts 36 | . 20 6 10 Bad Acts 20 | . 13 1 6 Intel | -11 -10 -10 -9 ------- Run | Yrd Mat Min Mat Active Infowar (turns) . | . . . . Robot Analysis Total 1 | . . . 1 Derelict Logs Recovered 1 | . . 1 . Drone Launches . | . . . . Drone Recoveries . | . . . . Exploration | -11 -10 -10 -9 ------------- Run | Yrd Mat Min Mat Turns Passed 3979 | 150 1353 801 1675 Spaces Moved 1901 | 71 614 446 770 Core 2 | 2 . . . Treads 1899 | 69 614 446 770 Legs . | . . . . Wheels . | . . . . Hover . | . . . . Flight . | . . . . Fastest Speed 50 | 50 160 160 160 Average Speed 166 | 156 160 160 175 Slowest Speed 240 | 160 240 160 200 Overloaded Moves . | . . . . Propulsion Burnouts . | . . . . Robots Hopped . | . . . . Potential Cave-ins . | . . . . Cave-ins Triggered . | . . . . Exploration Rate (%) 66 | 5 93 91 76 Regions Visited 3 Branch Regions 1 Pre-discovered Areas 6 | . 4 1 1 Known Exits Taken 1 | . . 1 . Unknown Exits Taken 2 | 1 1 . . Scrap Searched 1 | . . 1 . Spaces Dug 2 | . . . 2 Terrain Destroyed 427 | 8 79 73 267 Melee . | . . . . Projectile 25 | . . . 25 AOE 402 | 8 79 73 242 Terrain Rammed . | . . . . Walls Destroyed . | . . . . Machines Disabled . | . . . . Actions | -11 -10 -10 -9 --------- Run | Yrd Mat Min Mat Total 2435 | 91 887 520 937 Wait 252 | 1 162 57 32 Move 1898 | 70 613 445 770 Hop . | . . . . Pick Up 43 | 6 25 1 11 Fast Attach 17 | 6 6 . 5 Attach 5 | . 1 . 4 Detach . | . . . . Swap 26 | . 7 2 17 Drop 32 | . 21 . 11 Fire 152 | 8 52 9 83 Melee . | . . . . Ram . | . . . . Kick . | . . . . Crush 10 | . . 6 4 Escape Stasis . | . . . . Rewire . | . . . . Trap . | . . . . Miscellaneous . | . . . . Route ------- -11/Scrapyard -10/Materials (discovered 4 exits: *Mat x2 / [*Min] / Sub) -10/Mines (discovered 3 exits: *Mat x2 / *Sub) -9/Materials (discovered 5 exits: *Mat x2 / *Min / [*Sto x2]) History --------- Turn | Location | Event 12 | -11/Scrapyard | Discovered new exit (range 14) 151 | -11/Scrapyard | Entered Materials 318 | -10/Materials | Build established: Mutant 380 | -10/Materials | Prayed at D.C.S.S. Altar Unit 506 | -10/Materials | Weapon slot count temporarily expanded by X0-1V1 (+1) 530 | -10/Materials | Melee accuracy permanently improved by X0-1V1 (+5%; -50 max core) 625 | -10/Materials | Discovered new exit (range 10) 812 | -10/Materials | Build established: Gunner 888 | -10/Materials | Discovered new exit (range 16) 950 | -10/Materials | X0-1V1 announced a LAN party 958 | -10/Materials | X0-1V1 added 0b10 threat records associated with you (considerable) 962 | -10/Materials | Learned location of 1 exit from Storage 968 | -10/Materials | X0-1V1 foreshadows a heat wave 971 | -10/Materials | X0-1V1 activates XOMVISION 983 | -10/Materials | Identified exit to Materials 983 | -10/Materials | X0-1V1 revealed exit location to -9/Materials 984 | -10/Materials | X0-1V1 put everyone to sleep 989 | -10/Materials | Learned location of Mines (-8) 1018 | -10/Materials | Loaded intel: 12 interactive machine locations 1019 | -10/Materials | Learned 2 Storage zone layouts 1034 | -10/Materials | X0-1V1 vaporized surrounding terrain (radius 17) 1040 | -10/Materials | X0-1V1 sent you into danger 1041 | -10/Materials | Learned Storage stockpile data 1051 | -10/Materials | X0-1V1 tapped a No Entrance sign 1052 | -10/Materials | Identified exit to Subcaves 1052 | -10/Materials | X0-1V1 revealed exit location to -10/Subcaves 1139 | -10/Materials | Ambient heat levels rising (+10) 1149 | -10/Materials | Weapon slot count reverted to normal (-1) 1345 | -10/Materials | Ambient heat levels rising (+10) 1452 | -10/Materials | Build established: Mutant 1497 | -10/Materials | Ambient heat levels falling (-10) 1504 | -10/Materials | Entered Mines 1702 | -10/Mines | Discovered exit to Subcaves (range 11) 1742 | -10/Mines | Assisted by bots powering up and referring to "LRC-V3" 1753 | -10/Mines | Discovered exit to Materials (range 12) 1966 | -10/Mines | X0-1V1 activates XOMVISION 2193 | -10/Mines | Met a Derelict testing a Signal Generator 2231 | -10/Mines | Discovered exit to Materials (range 17) 2305 | -10/Mines | Entered Materials 2305 | -9/Materials | Accompanied by 5 allies 2305 | -9/Materials | Evolved 2 slots: Utility x2 2306 | -9/Materials | Identified exit to Mines 2310 | -9/Materials | Led the pair of lost Derelicts to an unsafe place 2313 | -9/Materials | Energy generation permanently improved by X0-1V1 (+15; -150 max core) 2480 | -9/Materials | Central database locked down 2505 | -9/Materials | Discovered new exit (range 4) 2583 | -9/Materials | Identified exit to Materials 2583 | -9/Materials | X0-1V1 revealed exit location to -8/Materials 3105 | -9/Materials | First assault squad dispatched 3179 | -9/Materials | X0-1V1 tapped a No Entrance sign 3316 | -9/Materials | Discovered exit to Materials (range 16) 3346 | -9/Materials | X0-1V1 activates XOMVISION 3396 | -9/Materials | Discovered new exit (range 16) 3442 | -9/Materials | X0-1V1 sent hostile G-34 Mercenary (x3) 3632 | -9/Materials | Destroyed 11 combat bots 3824 | -9/Materials | Learned location of 3 exits from Materials 3885 | -9/Materials | Core integrity fell below 50% 3886 | -9/Materials | Learned 2 Storage zone layouts 3912 | -9/Materials | Sterilization system engaged 3912 | -9/Materials | Non-combat units ordered to evacuate 3918 | -9/Materials | X0-1V1 announced a LAN party 3938 | -9/Materials | Learned location of 1 exit from Recycling 3964 | -9/Materials | X0-1V1 activates XOMVISION 3969 | -9/Materials | X0-1V1 vaporized surrounding terrain (radius 17) 3976 | -9/Materials | Core integrity fell below 20% 3980 | -9/Materials | Self-destructed Last Messages --------------- 03938_ >> SKIM: Stored Recycling exits (x1). 03947_ C-45 Heavy ARC bursts open, deploying its payload. 03947_ G-47 Trooper unfolds itself. 03947_ G-34 Mercenary unfolds itself. 03947_ B-36 Bruiser unfolds itself. 03947_ I-25 Savior unfolds itself. 03961_ Critical hit (Burn: +37). 03964_ Suggestive images of robots vie for attention in your data streams. 03964_ X0-1V1: "Enjoy your XOMVISION!" Surrounding terrain vaporized. 03969_ X0-1V1: "Learned that one from the Sigix." 03970_ Y-45 Defender destroyed. 03976_ The unstable cave ceiling collapses. 03978_ Grenade Launcher+ destroyed. 03978_ X0-1V1's Piety Tracker destroyed. 03978_ X0-1V1 is mildly amused. 03978_ System corrupted by crushing effect (+3). 03978_ System corrupted by crushing effect (+5). 03979_ >> SKIM: Stored Recycling entrances (x1). 03979_ The unstable cave ceiling collapses. Map ----- +----------------------------------------------------+ | | | | | | | | | ?????????????????????????????????????????????????? | | ?????????????????????????????????????????????????? | | ?????????????????????????????????????????????????? | | ????????????????##???????????????????????????????? | | ????????????????# ##################?????????????? | | ????????????????? ???????????? | | ??????????????????# ???????????? | | ???????????????#### ???????????? | | ???????????????# i ???????????? | | ???????????????# ;; ; " ""### ???????????? | | ?????????????? ; ; # ??? ??? ????????????? | | ?????????????? ; ? ?? ? ???????????? | | ?????########; ; ; # ;;; ? ? ??????????? | | ####? ; ; [%*=== ; ;;;;;;"??????????? | | # ; ; [ == ; ;;;;;;;"###??????? | | # ; ; == + + #??????? | | T + """ ""? ; ; ; ; ; #??????? | | # """ """ ; ; ; ; "T" ; ; #??????? | | ## """ """ ; ; ; """ ;=; #??????? | | #?? ; ; ; # ;;[; #??????? | | #?? ; ; ; ;=; #??????? | | #???####;;;;;; ;; g @ ;%; #??????? | | #????###;;;;; g; [ b +=; #??????? | | ###????# ; ;=;; #######??? | | ######## T =; ;!;; = #??? | | =# "% *====g== ! ! = """ #??? | | # ##;; ! !;;; ;;;+;; * * """ #??? | | # # ;;;;;;; ; """ #??? | | = # #;;;;;;;;;; ; C #??? | | ] + #? !! ; ; #??? | | # #? !! ; ;;;;;;; k #######??? | | ] # #?? !! ; ;;;;;; #????????? | | ! # #?? w ; ; k #????????? | | # #???? """ ;;;;;;;; """ #????????? | | # #???????" # # """ + #????????? | | ######## #?????????;;;;;;;; """ # ##????????? | | ??=? +??????????? # # #?????????? | | ?= #????????????????# # #?????????? | | ""#????????????????####### #?????????? | | T"#??????????????????????? ?????????? | | ] ""#??????????????????????# ?????????? | | ???????????????????????## ?????????? | | ???????????????????????? = #???????#? | | ???????????????######### ?##### ## | | ??????????????? # ### # | | ? ???????? ????? T """ # ## # | +----------------------------------------------------+ Best States ------------- Heat Dissipation 64 Energy Generation 29 Energy Capacity 1525 Matter Stores 1000 Matter Capacity 1000 Sight Range 22 Terrain Scan Density 10 Armor Coverage 375 Evasion (%) 40 Recoil Reduction 2 Item Schematics ----------------- None Robot Schematics ------------------ None Fabricated ------------ Nothing Repaired ---------- Nothing Studied --------- Grenade Launcher | -9/Materials | Hacked Imp. Treads | -9/Materials | Hacked Lgt. Treads | -9/Materials | Hacked Assault Rifle | -9/Materials | Hacked Alien Tech Used ----------------- None Achievements -------------- None Challenges ------------ None Game ------ Seed ReactiveSmartReconstructor Manual? 0 Play Time 00:24:36 Cumulative 632.2 hours Start 2026.09.07 @ 07:12:32 End 2026.09.07 @ 07:36:17 Sessions 1 Manual Loads 0 Difficulty Rogue Special Mode None Game No. 343 Rogue 343 Adventurer 0 Explorer 0 Win Type - Total 20 Types 10/1/3/1/1/0/1/1/0/2 Lore% 86 Gallery% 85 Achievement% 77 Wizard Run 0 Options --------- Layout 0 ASCII 0 Keyboard 0 Movement Mouse Keybinds 0 Fullscreen 1 Font 18/SmallcapsGlow Map View 76x50 Zoom Use 0% Tactical HUD 1 Map Filters NONE Filters NONE Steam 1 RUN: ae67c612-891f-4430-bbf6-ce0b62eb495c